bitfinex/quotes_ETHUSD_20260119
["timestamp","ask_amount","ask_price","bid_price","bid_amount"]
[1768810741675,3.54755963,3205.7,3205.1,1.09334127]
[1768810741983,0.00080016,3205.7,3205.1,3.11998622]
[1768810742184,0.00080016,3205.7,3205.2,1.09334127]
[1768810742360,0.00080016,3205.7,3205.3,1.09334127]
[1768810742679,0.00080016,3205.7,3205.6,1.09334127]
[1768810743257,0.00080016,3205.7,3205.4,1.67042964]
[1768810744357,0.001,3205.9,3205.5,1.09334127]
[1768810744953,0.4180211,3205.9,3205.5,1.09334127]
[1768810745155,0.4180211,3205.9,3205.3,1.09414151]
[1768810745383,0.4180211,3205.9,3205.4,0.16081415]
[1768810748358,0.001,3205.9,3205.5,1.09334127]
[1768810748557,0.40381469,3205.9,3205.5,1.09334127]
[1768810748758,0.40381469,3205.9,3205.4,0.16081415]
[1768810748973,0.40381469,3205.9,3205.5,0.43747463]
[1768810749452,0.00080024,3206.0,3205.6,1.09334127]
[1768810749887,0.40116472,3206.0,3205.5,0.43747463]
[1768810750581,0.40116472,3206.0,3205.5,1.5308159]
[1768810750955,0.40116472,3206.0,3205.5,0.43747463]
[1768810751161,0.40116472,3206.0,3205.4,1.25415542]
[1768810751473,3.11995833,3206.0,3205.4,1.25415542]
[1768810751677,0.39358249,3205.9,3205.4,1.25415542]
[1768810752269,0.39358249,3205.9,3205.4,4.37388682]
[1768810752470,0.39358249,3205.9,3205.7,0.002]
[1768810758011,0.00080024,3206.0,3205.7,1.09534127]
[1768810759000,0.00180024,3206.3,3205.8,1.09334127]
[1768810759213,0.00080024,3206.7,3206.3,1.09334127]
[1768810759409,0.00080024,3206.7,3206.6,1.09334127]
[1768810759702,0.00080032,3207.3,3206.6,1.09414159]
[1768810759919,0.36956914,3207.3,3206.6,1.09414159]
[1768810760427,0.00080032,3207.3,3206.6,1.09414159]
[1768810760567,0.36653065,3207.3,3206.7,1.09334127]
[1768810762689,0.00080032,3207.3,3206.7,1.09334127]
[1768810763195,0.35762301,3207.3,3206.7,1.09334127]
[1768810764590,3.47552009,3207.3,3206.9,0.002]
[1768810764961,0.0008004,3207.6,3207.0,1.06776525]
[1768810765161,0.0008004,3207.6,3207.1,1.06776525]
[1768810766911,0.0008004,3207.6,3207.1,4.18583931]
[1768810767109,0.0008004,3207.6,3207.2,1.06776525]
[1768810767974,0.00080032,3207.9,3207.4,1.06776525]
[1768810768804,0.00080032,3207.9,3207.4,3.11769783]
[1768810769009,0.00080032,3207.9,3207.5,1.06776525]
[1768810770809,0.4160274,3207.6,3207.0,1.693481]
[1768810771107,0.41682788,3207.6,3207.0,1.58176525]
[1768810771398,0.41682788,3207.6,3207.1,1.06776525]
[1768810771778,0.00080048,3207.6,3207.1,1.06776525]
[1768810772695,0.41156796,3207.6,3206.9,0.0028004]
[1768810772900,0.41076748,3207.2,3206.9,0.0028004]
[1768810773212,0.41076748,3207.2,3206.6,0.00080032]
[1768810773817,0.41076748,3207.2,3206.6,1.06856557]
[1768810773977,0.40538234,3207.0,3206.3,0.00080032]
[1768810774304,0.40538234,3206.7,3206.3,0.00080032]
[1768810774904,3.52139525,3206.6,3206.3,0.00080032]
[1768810775303,0.4028273,3206.5,3206.3,0.00080032]
[1768810775604,0.4028273,3206.5,3205.9,0.00080032]
[1768810775806,6.2371359,3206.6,3205.9,0.00080032]
[1768810775807,0.40030159,3206.3,3205.9,0.00080032]
[1768810776302,0.35213953,3206.4,3205.9,1.06856557]
[1768810776508,6.7511359,3206.6,3205.9,1.06856557]
[1768810776734,0.00080032,3206.7,3206.1,1.06776525]
[1768810777307,0.39860522,3206.7,3206.1,1.06776525]
[1768810777486,0.39860522,3206.7,3206.6,0.002]
[1768810777682,0.39860522,3206.7,3206.1,1.06776525]
[1768810778097,0.39860522,3206.7,3206.3,0.002]
[1768810778098,0.39533689,3206.6,3206.3,0.002]
[1768810779007,0.66433553,3206.7,3206.3,0.002]
[1768810780501,0.38810163,3206.6,3206.3,0.002]
[1768810788614,3.48712856,3206.7,3206.3,0.002]
[1768810788813,0.40011286,3206.6,3206.3,0.002]
[1768810789018,0.76795419,3206.6,3206.3,0.002]
[1768810790117,0.40011286,3206.6,3206.3,0.002]
[1768810790310,0.00080032,3206.7,3206.3,1.07378485]
[1768810793997,0.35625889,3206.7,3206.3,1.07378485]
[1768810794322,0.35625889,3206.7,3206.3,0.002]
[1768810795592,0.35625889,3206.7,3205.9,0.00080032]
[1768810795593,0.35625889,3206.7,3205.9,0.98852142]
[1768810796412,3.47008604,3206.6,3206.0,0.9877211]
[1768810796614,0.35151809,3206.5,3206.0,0.9877211]
[1768810798420,0.3476676,3206.4,3205.9,0.98852142]
[1768810799448,0.3476676,3206.4,3205.9,0.00080032]
[1768810799751,0.34577546,3206.3,3205.9,0.00080032]
[1768810800047,0.34390506,3206.2,3205.9,0.00080032]
[1768810800227,0.34390506,3206.0,3205.7,0.002]
[1768810800634,3.46305683,3206.0,3205.7,0.002]
[1768810801929,0.34390506,3206.0,3205.7,0.002]
[1768810802325,0.00080032,3206.3,3205.7,0.9897211]
[1768810802571,3.63370069,3206.3,3205.7,0.9897211]
[1768810802727,0.51480032,3206.3,3205.8,0.9877211]
[1768810802929,0.00080032,3206.3,3205.8,0.9877211]
[1768810803225,0.00080032,3206.7,3206.3,0.9877211]
[1768810803836,3.11932114,3206.7,3206.3,0.9877211]
[1768810804641,0.00080032,3206.7,3206.3,0.9877211]
[1768810806456,6.18754814,3206.8,3206.4,0.9877211]
[1768810806628,6.69318121,3206.8,3206.4,0.9877211]
[1768810806830,3.5748073,3206.8,3206.4,0.9877211]
[1768810807251,7.74530351,3206.8,3206.3,0.0008004]
[1768810807446,6.69318121,3206.8,3206.3,0.0008004]
[1768810807630,1.0521223,3206.7,3206.3,0.0008004]
[1768810809159,3.11856795,3206.6,3206.3,0.0008004]
[1768810809526,3.11856795,3206.6,3206.3,0.9885215]
[1768810810251,3.11848907,3206.7,3206.3,0.9885215]
[1768810811147,0.00180032,3207.0,3206.5,0.9877211]
[1768810811347,0.0008004,3207.3,3206.8,0.9877211]
[1768810811759,0.00080048,3207.6,3206.9,0.98852158]
[1768810813258,0.00080048,3207.6,3207.1,0.9877211]
[1768810814249,0.00080032,3207.9,3207.0,6.23635796]
[1768810814464,0.00080032,3207.9,3207.3,0.9877211]
[1768810815332,1.05292254,3209.0,3207.6,0.9877211]
[1768810815530,1.05292254,3209.0,3208.0,0.9877211]
[1768810815531,3.11633269,3208.9,3208.0,0.9877211]
[1768810815734,3.11633269,3208.9,3207.9,0.00080032]
[1768810815735,1.0521223,3208.6,3207.9,0.00080032]
[1768810815951,1.0521223,3208.3,3207.5,0.0008004]
[1768810816261,1.0521223,3208.1,3207.5,0.0008004]
[1768810816460,1.0521223,3208.1,3207.5,0.9885215]
[1768810818367,3.1170761,3208.2,3207.5,0.9885215]
[1768810819771,4.1698435,3208.3,3207.6,0.9877211]
[1768810819968,1.0521223,3208.2,3207.5,0.9885215]
[1768810820166,1.0521223,3208.1,3207.5,0.9885215]
[1768810820370,4.1698435,3208.3,3207.6,0.9877211]
[1768810820668,1.0521223,3208.2,3207.6,0.9877211]
[1768810821970,1.0521223,3208.2,3207.7,0.9877211]
[1768810823946,0.00080032,3208.3,3207.9,1.09609407]
[1768810825877,0.00080032,3208.3,3207.9,1.09809407]
[1768810826056,0.00080032,3208.3,3208.1,1.09609407]
[1768810826452,0.51480024,3209.0,3208.2,1.09609407]
[1768810826778,0.00080024,3209.0,3208.2,1.09609407]
[1768810827956,0.00080024,3209.0,3208.4,1.09609407]
[1768810828292,1.06129231,3209.0,3208.4,1.09609407]
[1768810828580,1.06129231,3209.0,3208.4,1.82908658]
[1768810828776,1.06129231,3209.0,3208.5,1.09609407]
[1768810828950,0.00080024,3209.0,3208.5,1.09609407]
[1768810830167,0.00080024,3209.0,3208.6,3.11662407]
[1768810830374,0.00080024,3209.0,3208.7,1.09609407]
[1768810830579,0.0008,3209.3,3208.7,1.09609407]
[1768810831178,0.0008,3209.3,3208.8,1.09609407]
[1768810832679,0.0008,3209.3,3209.0,1.09609407]
[1768810834090,0.0008,3209.3,3208.7,0.78441425]
[1768810834091,1.06129207,3209.7,3208.9,1.09689415]
[1768810834760,1.06129207,3209.7,3209.1,1.09609407]
[1768810835480,0.0008,3209.7,3209.1,1.09609407]
[1768810835790,0.0008,3210.0,3209.1,1.09609407]
[1768810835791,0.0008,3210.0,3209.2,1.09609407]
[1768810835955,0.0008,3210.0,3209.4,1.09609407]
[1768810836761,0.0008,3210.0,3209.6,1.09609407]
[1768810838185,0.5148,3210.6,3209.7,1.09609407]
[1768810838353,0.5148,3210.6,3210.0,1.09609407]
[1768810838969,0.5148,3210.6,3209.9,0.00080008]
[1768810838970,0.5148,3210.6,3210.2,1.09609407]
[1768810839170,1.06129207,3210.9,3210.3,1.06499377]
[1768810839986,1.12551454,3210.9,3210.3,1.06499377]
[1768810840193,0.0008,3210.9,3210.3,1.06499377]
[1768810840392,0.0008,3210.9,3210.2,0.00080008]
[1768810840393,1.12551454,3210.9,3210.2,0.00080008]
[1768810840602,1.12471454,3210.7,3210.2,0.00080008]
[1768810843010,3.62851577,3210.8,3210.2,1.06579385]
[1768810843011,0.514,3210.8,3210.2,1.06579385]
[1768810843217,0.0008,3210.9,3210.2,1.06579385]
[1768810844500,1.12551454,3210.9,3210.2,1.06579385]
[1768810845224,1.12551454,3210.9,3210.3,4.17996744]
[1768810845523,1.28946599,3210.9,3210.3,4.17996744]
[1768810845825,0.16475145,3210.9,3210.4,1.06499377]
[1768810845999,0.0008,3210.9,3210.4,1.06499377]
[1768810846399,1.12471454,3211.1,3210.5,1.06579385]
[1768810846830,1.04925866,3211.2,3210.5,1.06579385]
[1768810847011,0.0016,3211.3,3210.7,1.06499377]
[1768810847206,0.0016,3211.3,3210.9,1.06499377]
[1768810847528,0.0016,3211.3,3211.1,0.06470104]
[1768810848395,0.0016,3211.3,3211.1,1.12969481]
[1768810848904,0.0008,3212.0,3211.2,1.06579385]
[1768810849206,0.43231267,3212.3,3211.7,1.06499377]
[1768810849407,0.43231267,3212.3,3211.7,4.17859802]
[1768810849723,0.43231267,3212.3,3211.7,1.06499377]
[1768810850088,0.79085884,3212.2,3211.7,1.06499377]
[1768810850295,0.43633358,3212.2,3211.7,4.17859137]
[1768810851224,0.43633358,3212.2,3211.7,1.06499377]
[1768810851724,0.43633358,3212.2,3211.7,4.17860714]
[1768810851926,0.43633358,3212.2,3211.7,1.06499377]
[1768810852126,0.43633358,3212.2,3211.7,4.17859999]
[1768810852323,0.0008,3212.3,3211.7,4.17859999]
[1768810852511,0.0008,3212.3,3211.8,1.06499377]
[1768810853441,0.0008,3212.3,3211.9,1.07377927]
[1768810853650,0.0008,3212.6,3212.0,1.07377927]
[1768810854296,0.0008,3212.6,3211.9,0.00080008]
[1768810854638,0.0008,3212.6,3211.9,1.07457935]
[1768810854800,0.0008,3212.6,3212.0,1.07377927]
[1768810855224,0.0008,3212.9,3212.0,1.07377927]
[1768810855428,0.0008,3212.9,3212.2,1.07457935]
[1768810855595,0.513,3213.2,3212.3,1.07377927]
[1768810855797,1e-08,3213.3,3212.7,1.07377927]
[1768810856638,1e-08,3213.3,3212.5,1.07457935]
[1768810856815,3.11206665,3213.3,3212.5,1.07457935]
[1768810857009,0.00080008,3212.9,3212.3,1.07377927]
[1768810857214,0.00080008,3212.9,3212.2,0.00080008]
[1768810858547,0.00080008,3212.9,3211.9,0.00080008]
[1768810858548,0.00080008,3212.6,3211.9,0.00080008]
[1768810859469,0.00080008,3212.3,3211.6,0.00080008]
[1768810859835,0.513,3212.2,3211.6,0.00080008]
[1768810860035,0.00080008,3212.3,3211.6,1.07457935]
[1768810860944,0.00080008,3212.9,3211.7,1.07377927]
[1768810861143,0.0008,3213.9,3212.6,1.07377927]
[1768810861144,0.0008,3213.6,3212.6,1.07377927]
[1768810861550,0.0008,3213.6,3212.8,1.07377927]
[1768810862334,0.0008,3213.6,3212.5,1.07457943]
[1768810863042,0.0008,3213.6,3212.7,1.07377927]
[1768810864020,0.0008,3213.6,3212.8,1.07377927]
[1768810865447,0.0008,3213.6,3212.5,1.07457943]
[1768810865862,0.0008,3213.6,3212.8,1.07377927]
[1768810867943,0.0008,3213.6,3212.9,1.07377927]
[1768810868676,1e-08,3213.6,3213.0,1.07377927]
[1768810868974,0.0008,3213.9,3213.3,1.07377927]
[1768810869782,0.0008,3213.9,3213.2,0.00080008]
[1768810870267,0.0008,3213.9,3213.3,1.07377927]
[1768810871540,0.0008,3213.9,3213.2,0.00080008]
[1768810871957,0.0008,3214.5,3213.6,1.07377927]
[1768810872161,0.5128,3214.5,3213.9,1.07377927]
[1768810872492,6.73466911,3214.5,3213.8,0.00080008]
[1768810872784,0.6736455,3214.4,3213.8,0.00080008]
[1768810873573,0.512,3214.3,3213.8,0.00080008]
[1768810873983,6.22238814,3214.2,3213.2,0.00080008]
[1768810874184,0.00080008,3213.9,3213.2,0.00080008]
[1768810874492,0.00080008,3213.9,3212.9,0.00080008]
[1768810874674,0.00080008,3213.9,3212.5,0.00080016]
[1768810874675,0.00080008,3213.3,3212.5,0.00080016]
[1768810874985,0.512,3213.2,3212.5,0.00080016]
[1768810875368,0.512,3213.2,3211.9,0.00080016]
[1768810875569,0.00080016,3212.9,3211.9,0.00080016]
[1768810875765,30.0,3212.8,3211.6,0.00080008]
[1768810875982,0.00080016,3212.3,3211.6,0.00080008]
[1768810876407,0.512,3212.2,3211.6,0.00080008]
[1768810876588,0.512,3212.1,3211.6,0.00080008]
[1768810877385,0.00080008,3212.0,3211.1,1.07377927]
[1768810877921,6.22745014,3212.0,3211.3,0.002]
[1768810878056,0.67394501,3211.9,3211.3,0.002]
[1768810878258,0.67394501,3211.9,3210.9,0.00160016]
[1768810878461,0.00080008,3211.6,3210.9,0.00160016]
[1768810878996,0.512,3211.5,3211.1,1.07377927]
[1768810879203,0.00080016,3212.9,3211.4,1.07377927]
[1768810879489,0.00080016,3212.9,3211.9,1.07377927]
[1768810879703,0.00080016,3212.9,3211.6,1.07457943]
[1768810879704,0.512,3212.2,3211.6,1.07457943]
[1768810879901,0.512,3212.2,3211.6,0.00080016]
[1768810880694,3.98765949,3212.2,3211.6,0.00080016]
[1768810880904,7.10081284,3212.2,3211.6,0.00080016]
[1768810881103,7.10081284,3212.2,3211.2,0.00080016]
[1768810881271,0.00080016,3212.0,3211.2,0.00080016]
[1768810881674,0.512,3211.9,3211.2,0.00080016]
[1768810882008,3.62543236,3211.9,3211.2,0.00080016]
[1768810882308,0.00080016,3211.6,3210.9,0.00160016]
[1768810883098,0.00080016,3211.6,3210.5,0.00080008]
[1768810883312,0.00160016,3211.3,3210.5,0.00080008]
[1768810883516,0.512,3211.2,3210.5,0.00080008]
[1768810883871,0.512,3211.1,3210.5,0.00080008]
[1768810884066,3.11410064,3211.2,3210.5,0.00080008]
[1768810884271,0.82357008,3211.1,3210.5,0.00080008]
[1768810884547,0.82357008,3211.1,3210.2,0.00080008]
[1768810884688,0.00080008,3210.9,3210.2,0.00080008]
[1768810885609,0.512,3210.8,3210.2,0.00080008]
[1768810885808,0.00080008,3210.9,3210.3,1.04368618]
[1768810886008,0.00080008,3210.9,3210.3,4.57455355]
[1768810886009,0.512,3210.8,3210.3,4.57455355]
[1768810886218,0.512,3210.8,3210.2,0.00080008]
[1768810886372,3.62651304,3210.8,3210.2,0.00080008]
[1768810886573,0.00080008,3210.9,3210.2,0.00080008]
[1768810886834,0.512,3210.8,3210.2,0.00080008]
[1768810887719,3.11521499,3210.9,3210.2,0.00080008]
[1768810887926,0.35017815,3210.8,3210.2,0.00080008]
[1768810888126,3.1145856,3210.7,3210.2,0.00080008]
[1768810888701,0.00160016,3211.3,3210.3,1.04368618]
[1768810888901,0.00160016,3211.3,3210.2,0.00080008]
[1768810888902,0.512,3211.2,3210.6,1.04368618]
[1768810890013,1.56401636,3211.2,3210.5,0.00280016]
[1768810890320,6.74039524,3211.1,3210.5,0.00280016]
[1768810890907,0.00080016,3210.9,3210.2,0.00080008]
[1768810891540,0.512,3210.8,3210.2,0.00080008]
[1768810892405,3.1145856,3210.7,3210.2,0.00080008]
[1768810892640,0.67411309,3210.6,3210.2,0.00080008]
[1768810893296,0.512,3210.5,3210.2,0.00080008]
[1768810894233,3.11453115,3210.8,3210.2,0.00080008]
[1768810894439,0.512,3210.4,3210.2,0.00080008]
[1768810894927,0.36477124,3210.3,3209.6,0.00080008]
[1768810895106,0.7106559,3210.2,3209.6,0.00080008]
[1768810895310,0.512,3210.1,3209.6,1.04448626]
[1768810895515,0.512,3210.0,3209.6,1.04448626]
[1768810895712,0.512,3209.9,3209.6,1.04448626]
[1768810896100,0.512,3209.9,3209.3,1.04448626]
[1768810896539,0.512,3209.9,3209.3,3.11672505]
[1768810896698,3.11609397,3210.0,3209.5,1.04568618]
[1768810896903,0.512,3209.8,3209.5,1.04568618]
[1768810897598,0.69498419,3210.0,3209.5,1.04568618]
[1768810897805,0.512,3209.9,3209.5,1.04568618]
[1768810898737,3.62739946,3209.9,3209.5,0.002]
[1768810899235,0.512,3209.9,3209.5,0.002]
[1768810899440,3.11610868,3210.0,3209.5,1.03543028]
[1768810899441,0.512,3209.8,3209.5,1.03543028]
[1768810899804,0.512,3209.7,3209.5,1.03543028]
[1768810901507,0.00080008,3210.0,3209.5,1.03543028]
[1768810901842,0.512,3209.9,3209.5,1.03543028]
[1768810902738,3.6273716,3209.9,3209.5,1.03543028]
[1768810902906,3.6273716,3209.9,3209.5,0.95957448]
[1768810903232,3.99018877,3209.9,3209.3,1.03423036]
[1768810903454,0.001,3209.6,3209.3,1.03423036]
[1768810905228,0.001,3209.6,3209.1,0.002]
[1768810905474,0.001,3209.6,3208.9,0.00080008]
[1768810905624,0.001,3209.6,3208.9,1.03423036]
[1768810906242,0.512,3209.5,3208.9,1.03423036]
[1768810906829,3.62783087,3209.5,3208.9,1.03423036]
[1768810907230,0.512,3209.4,3208.9,1.03423036]
[1768810907859,3.11667718,3209.6,3208.9,1.03423036]
[1768810908054,3.73997248,3209.6,3208.9,1.03423036]
[1768810908257,0.001,3209.6,3209.0,1.03343028]
[1768810908459,0.00080008,3210.0,3209.0,1.03343028]
[1768810908760,0.513,3209.9,3209.4,1.03343028]
[1768810908960,3.62837051,3209.9,3209.4,1.03343028]
[1768810910447,3.62837051,3209.9,3209.3,0.00080016]
[1768810910758,7.41818749,3209.9,3209.3,0.00080016]
[1768810911275,4.30281698,3209.9,3209.3,0.00080016]
[1768810911646,0.513,3209.9,3209.4,1.03343028]
[1768810911852,0.513,3209.8,3209.4,1.03343028]
[1768810912040,3.11609212,3210.0,3209.4,1.03343028]
[1768810912041,0.00080008,3210.0,3209.4,1.03343028]
[1768810912239,0.00080008,3210.0,3209.3,0.00080016]
[1768810912240,0.513,3209.9,3209.7,1.03343028]
[1768810912687,0.00080008,3210.3,3209.7,1.03343028]
[1768810912854,3.62708379,3210.2,3209.8,1.07325923]
[1768810913043,3.11508379,3210.2,3209.8,1.07325923]
[1768810913242,0.512,3210.1,3209.8,1.07325923]
[1768810913468,0.512,3210.1,3209.6,0.00080016]
[1768810913646,0.512,3210.1,3209.6,0.41977703]
[1768810913846,0.512,3210.1,3209.6,4.60867396]
[1768810914875,0.00080008,3210.3,3209.7,3.11555229]
[1768810915172,0.512,3210.2,3209.7,3.11555229]
[1768810915341,0.512,3210.2,3209.7,1.07325923]
[1768810915543,0.512,3210.2,3209.7,1.53432435]
[1768810916375,0.512,3210.2,3209.8,1.07325923]
[1768810916574,0.00080008,3210.3,3209.8,1.07325923]
[1768810917040,0.512,3210.2,3209.8,1.07325923]
[1768810917447,0.512,3210.1,3209.8,1.07325923]
[1768810917645,0.512,3210.0,3209.8,4.188716]
[1768810917882,0.512,3210.0,3209.9,1.07325923]
[1768810918070,0.33714765,3210.0,3209.9,1.07325923]
[1768810918762,0.512,3210.0,3209.9,1.07325923]
[1768810919673,0.00080008,3210.3,3209.8,1.07325923]
[1768810919849,0.00080008,3210.3,3210.0,1.07325923]
[1768810919850,0.51280008,3210.3,3210.0,1.07325923]
[1768810921184,0.51280008,3210.3,3209.7,1.07325923]
[1768810921481,0.98345891,3210.2,3209.2,1.07325923]
[1768810921787,0.98425907,3210.0,3209.2,1.07325923]
[1768810922391,0.98425907,3210.0,3208.9,4.19036275]
[1768810922542,0.98425907,3210.0,3208.9,1.07405931]
[1768810922945,0.00080016,3209.7,3208.9,1.07405931]
[1768810923178,3.11575011,3209.5,3208.9,0.00080008]
[1768810923342,6.23150022,3209.5,3208.9,0.00080008]
[1768810923777,3.88852604,3209.5,3208.9,0.00080008]
[1768810923946,0.98425907,3209.7,3209.0,1.07325923]
[1768810923947,0.512,3209.4,3209.0,1.07325923]
[1768810925659,3.11576644,3209.5,3208.9,0.00080008]
[1768810925878,0.512,3209.4,3208.9,0.00080008]
[1768810926074,0.00080016,3209.7,3208.9,0.00080008]
[1768810926075,0.00080016,3209.7,3209.0,1.07325923]
[1768810926275,0.00080016,3209.7,3209.1,1.07325923]
[1768810926484,0.512,3209.6,3209.1,1.07325923]
[1768810927295,0.00080016,3209.7,3209.1,1.07325923]
[1768810927471,0.512,3209.6,3208.9,0.00080008]
[1768810927796,0.512,3209.6,3209.2,0.002]
[1768810927993,0.512,3209.6,3208.9,0.00280008]
[1768810928597,0.512,3209.6,3208.9,4.19233746]
[1768810929161,0.512,3209.6,3208.9,1.07605931]
[1768810929362,3.62773686,3209.6,3208.9,1.07605931]
[1768810930599,0.512,3209.6,3208.9,4.19236947]
[1768810931370,3.62767128,3209.6,3208.9,4.19236947]
[1768810931601,4.61113019,3209.6,3208.9,1.07605931]
[1768810931909,8.49955169,3209.6,3208.9,1.07605931]
[1768810932204,5.38388041,3209.6,3208.9,0.00280008]
[1768810932589,1.75620913,3209.6,3208.9,3.11911395]
[1768810932781,0.512,3209.5,3208.9,4.19237318]
[1768810932978,0.00080016,3209.7,3209.0,1.07325923]
[1768810933295,0.512,3209.6,3209.0,1.07325923]
[1768810933670,0.512,3209.6,3209.0,4.18941735]
[1768810934302,0.00080016,3209.7,3209.0,4.18941735]
[1768810934501,0.512,3209.6,3209.0,4.18941735]
[1768810935917,0.00080016,3210.0,3209.2,1.07325923]
[1768810936071,0.98425907,3210.9,3209.6,0.00080024]
[1768810936275,0.98425907,3210.9,3209.7,1.07325923]
[1768810936276,0.51280008,3210.3,3209.7,1.07325923]
[1768810937695,0.00080008,3210.3,3209.7,1.07325923]
[1768810937892,0.00080008,3210.3,3209.9,1.07325923]
[1768810938074,0.00080008,3210.3,3209.9,1.49213104]
[1768810939418,0.00080008,3210.3,3209.9,1.07325923]
[1768810939603,0.00080008,3210.3,3209.7,4.18880891]
[1768810939791,0.00080008,3210.3,3209.8,1.07325923]
[1768810940001,0.00080008,3210.3,3209.9,4.18862107]
[1768810940386,0.00080008,3210.3,3209.9,1.07325923]
[1768810940708,0.98445891,3210.0,3209.6,0.00080024]
[1768810940909,0.001,3210.0,3209.6,0.00080024]
[1768810941284,0.513,3210.0,3209.6,0.00080024]
[1768810941808,0.001,3210.0,3209.6,0.00080024]
[1768810942013,3.11626479,3210.0,3209.6,0.00080024]
[1768810942714,0.001,3210.0,3209.6,0.00080024]
[1768810943132,0.96185123,3209.9,3209.3,0.00080024]
[1768810943683,0.4608053,3210.0,3209.3,1.02939222]
[1768810943927,0.512,3209.9,3209.4,1.02859198]
[1768810944084,0.00180024,3210.0,3209.5,1.02859198]
[1768810944286,0.00080008,3210.3,3209.5,1.02859198]
[1768810944584,0.00080008,3210.3,3209.7,1.02859198]
[1768810945054,0.00080008,3210.6,3209.7,1.02859198]
[1768810945329,3.11562514,3211.3,3210.3,1.02859198]
[1768810945486,3.11562514,3211.3,3210.2,0.00080016]
[1768810945487,7.19149403,3210.9,3210.2,0.00080016]
[1768810945686,0.7191494,3210.8,3210.2,0.00080016]
[1768810947289,0.00080016,3210.9,3210.2,0.00080016]
[1768810947488,3.11454557,3210.8,3210.2,0.00080016]
[1768810947800,0.00080016,3210.9,3210.2,0.00080016]
[1768810947995,3.11520835,3210.9,3210.2,0.00080016]
[1768810948214,0.00080016,3210.9,3210.2,0.00080016]
[1768810948415,0.00080016,3210.9,3210.2,1.02939214]
[1768810948840,0.00080016,3210.9,3210.3,1.02859198]
[1768810949143,0.00080016,3211.6,3211.0,1.02859198]
[1768810949719,6.22747079,3212.0,3211.2,0.00080024]
[1768810949887,0.96185123,3211.9,3211.2,0.00080024]
[1768810950389,0.512,3211.9,3211.2,0.00080024]
[1768810950590,0.87461252,3211.9,3211.2,1.02939222]
[1768810950989,3.11351889,3211.8,3211.2,0.00080024]
[1768810951226,3.98806011,3211.9,3211.2,0.00080024]
[1768810951789,3.47606011,3211.9,3211.2,0.00080024]
[1768810952812,0.96265139,3212.0,3211.3,1.02859198]
[1768810952813,0.00080016,3212.0,3211.3,1.02859198]
[1768810953013,0.00080016,3212.0,3211.5,1.02859198]
[1768810953629,0.001,3211.6,3211.5,1.02859198]
[1768810954517,0.00080016,3212.0,3211.5,1.02859198]
[1768810954717,0.00080016,3212.0,3211.6,1.02859198]
[1768810955034,0.00080016,3212.0,3211.7,4.14220782]
[1768810955190,0.00080016,3212.0,3211.7,1.02859198]
[1768810956989,3.6255753,3212.6,3211.7,1.02859198]
[1768810956990,0.00080016,3212.6,3211.9,1.02859198]
[1768810958523,0.96265139,3212.6,3211.6,1.02939222]
[1768810958823,0.96185123,3212.5,3211.6,0.00080024]
[1768810959032,4.07209179,3212.4,3211.6,0.00080024]
[1768810959534,0.40832218,3212.6,3211.6,1.00412669]
[1768810959736,3.11356738,3212.6,3211.6,1.00412669]
[1768810960027,4.07272181,3212.6,3211.6,1.00412669]
[1768810960391,0.00080008,3213.6,3212.2,1.00332645]
[1768810960619,3.1128969,3213.3,3212.6,1.00332645]
[1768810960796,1.78244412,3213.2,3212.5,0.00080024]
[1768810961223,0.31128969,3213.2,3212.5,0.00080024]
[1768810961395,0.512,3213.1,3212.5,1.00412669]
[1768810961589,0.51280008,3213.3,3212.5,1.00412669]
[1768810962519,0.00080008,3213.3,3212.6,1.00332645]
[1768810962696,0.00080008,3214.2,3212.8,1.00332645]
[1768810963027,0.00080008,3214.2,3213.2,1.00412661]
[1768810964036,0.00080008,3214.2,3213.5,0.00080016]
[1768810964235,0.31198395,3214.2,3213.5,0.00080016]
[1768810965441,0.0008,3214.9,3214.2,1.00332645]
[1768810966036,0.0008,3214.9,3214.4,1.02553793]
[1768810967330,0.0008,3214.9,3214.4,4.13645922]
[1768810967530,0.0008,3214.9,3214.4,7.24745971]
[1768810967740,0.512,3215.5,3214.5,1.00412653]
[1768810967901,0.0008,3215.7,3214.5,1.00412653]
[1768810968229,0.512,3215.5,3214.5,1.00412653]
[1768810968433,0.0008,3215.7,3215.0,1.00412653]
[1768810968599,0.0008,3215.7,3215.0,0.00080008]
[1768810969127,0.512,3215.6,3215.0,0.00080008]
[1768810969326,0.512,3215.5,3215.0,0.00080008]
[1768810970234,0.511,3215.4,3215.0,0.00080008]
[1768810971139,0.511,3215.3,3215.0,0.00080008]
[1768810971526,0.87310047,3215.3,3215.0,0.00080008]
[1768810971927,4.06970474,3215.7,3215.0,1.00412653]
[1768810971928,0.0008,3215.7,3215.0,1.00412653]
[1768810972128,0.0008,3216.0,3215.4,1.00332645]
[1768810972339,0.511,3215.8,3215.6,0.00080008]
[1768810973046,0.511,3215.8,3215.3,0.00080008]
[1768810973218,0.511,3215.7,3215.3,0.00080008]
[1768810973942,0.511,3215.6,3215.3,0.00080008]
[1768810974142,0.511,3215.6,3215.0,0.00080008]
[1768810974143,1.04138575,3215.5,3215.0,0.00080008]
[1768810974547,0.00080008,3215.4,3214.5,0.00080008]
[1768810974762,0.511,3215.3,3214.5,4.06697117]
[1768810974929,0.511,3215.3,3214.5,0.95609341]
[1768810975128,0.511,3215.3,3214.5,4.06698241]
[1768810975354,3.62113355,3215.3,3214.5,4.06698241]
[1768810975557,0.36219336,3215.2,3214.5,4.06698241]
[1768810975764,0.00080008,3215.7,3214.5,4.06698241]
[1768810975765,0.00080008,3215.7,3214.6,0.95529333]
[1768810975931,0.0008,3216.3,3215.4,0.95529333]
[1768810976120,0.511,3215.9,3215.4,0.95529333]
[1768810976439,0.5100368,3215.9,3215.3,0.00080016]
[1768810976636,1.04138575,3216.2,3215.3,0.00080016]
[1768810976836,0.0008,3216.3,3215.4,0.95529333]
[1768810977036,0.511,3215.9,3215.6,0.95609349]
[1768810977237,0.00080008,3216.3,3215.6,0.95609349]
[1768810977444,0.511,3216.2,3215.6,0.00080016]
[1768810977617,0.0008,3217.3,3215.9,0.00080016]
[1768810977824,0.511,3216.9,3216.0,0.95529333]
[1768810978024,3.10900197,3217.3,3216.0,0.95529333]
[1768810978223,0.0008,3217.3,3216.0,0.95529333]
[1768810978424,0.511,3216.9,3216.0,0.95529333]
[1768810978650,0.36203145,3216.8,3216.0,0.95529333]
[1768810978959,0.511,3216.7,3215.9,0.00080016]
[1768810979260,0.00080016,3215.7,3215.1,4.06561649]
[1768810979428,0.511,3215.6,3215.2,0.95529333]
[1768810979624,2e-08,3215.6,3215.2,0.95529333]